fUSD/lending_fUSD_20250213
["ID","MTS","AMOUNT","RATE_DAILY","PERIOD"]
[352943379,1739452244289,-151.0,0.00014986,2]
[352943380,1739452244299,-3302.75,0.00014986,2]
[352943381,1739452244308,-151.0,0.00014986,2]
[352943382,1739452244318,-151.0,0.00014986,2]
[352943383,1739452244327,-896.02,0.00014986,2]
[352943384,1739452244336,-151.0,0.00014986,2]
[352943385,1739452244345,-151.0,0.00014986,2]
[352943386,1739452244356,-151.0,0.00014986,2]
[352943387,1739452244366,-151.0,0.00014986,2]
[352943388,1739452244375,-151.0,0.00014986,2]
[352943389,1739452244384,-151.0,0.00014986,2]
[352943390,1739452244393,-151.0,0.00014986,2]
[352943391,1739452244403,-151.0,0.00014986,2]
[352943392,1739452244412,-151.0,0.00014986,2]
[352943393,1739452244422,-151.0,0.00014986,2]
[352943394,1739452244431,-151.0,0.00014986,2]
[352943395,1739452244441,-500.0,0.00014986,2]
[352943396,1739452244451,-151.0,0.00014986,2]
[352943397,1739452244461,-151.0,0.00014986,2]
[352943398,1739452244470,-151.0,0.00014986,2]
[352943399,1739452244481,-156.31368,0.00014986,2]
[352943400,1739452244490,-261.04434214,0.00014986,2]
[352943401,1739452244499,-769.44,0.00014986,2]
[352943402,1739452244508,-860.78,0.00014986,2]
[352943403,1739452244518,-500.0,0.00014986,2]
[352943404,1739452244527,-500.0,0.00014986,2]
[352943405,1739452244536,-860.14,0.00014986,2]
[352943406,1739452244545,-500.0,0.00014986,2]
[352943407,1739452244554,-679.85,0.00014986,2]
[352943408,1739452244565,-500.0,0.00014986,2]
[352943409,1739452244574,-1054.32,0.00014986,2]
[352943410,1739452244584,-694.09,0.00014986,2]
[352943411,1739452244593,-792.68,0.00014986,2]
[352943412,1739452244602,-500.0,0.00014986,2]
[352943413,1739452244611,-500.0,0.00014986,2]
[352943414,1739452244620,-500.0,0.00014986,2]
[352943415,1739452244629,-500.0,0.00014986,2]
[352943416,1739452244639,-509.6,0.00014986,2]
[352943417,1739452244648,-602.93967,0.00014986,2]
[352943418,1739452244658,-500.0,0.00014986,2]
[352943419,1739452244667,-500.0,0.00014986,2]
[352943420,1739452244676,-500.0,0.00014986,2]
[352943421,1739452244685,-151.0,0.00014986,2]
[352943422,1739452244695,-500.0,0.00014986,2]
[352943423,1739452244704,-1193.77,0.00014986,2]
[352943424,1739452244713,-539.24095566,0.00014986,2]
[352943425,1739452244726,-73.64904434,0.00014986,2]
[352943426,1739452244735,-842.0,0.00014987,2]
[352943427,1739452244745,-151.0,0.00014987,2]
[352943428,1739452244755,-151.0,0.00014987,2]
[352943429,1739452244765,-151.0,0.00014987,2]
[352943430,1739452244775,-500.0,0.00014987,2]
[352943431,1739452244785,-151.0,0.00014987,2]
[352943432,1739452244794,-521.29905419,0.00014987,2]
[352943433,1739452244804,-159.332828,0.00014987,2]
[352943434,1739452244817,-500.0,0.00014987,2]
[352943435,1739452244827,-500.0,0.00014987,2]
[352943436,1739452244839,-269.56316737,0.00014987,2]
[352943437,1739452244851,-500.0,0.00014987,2]
[352943438,1739452244861,-455.1174836,0.00014987,2]
[352943439,1739452244870,-500.0,0.00014987,2]
[352943440,1739452244880,-500.0,0.00014987,2]
[352943441,1739452244890,-500.0,0.00014987,2]
[352943442,1739452244900,-151.0,0.00014987,2]
[352943443,1739452244909,-151.0,0.00014987,2]
[352943444,1739452244920,-500.0,0.00014987,2]
[352943445,1739452244929,-500.0,0.00014987,2]
[352943446,1739452244939,-500.0,0.00014987,2]
[352943447,1739452244948,-500.0,0.00014987,2]
[352943448,1739452244957,-503.17258358,0.00014987,2]
[352943449,1739452244966,-497.97572583,0.00014987,2]
[352943450,1739452244976,-151.0,0.00014987,2]
[352943451,1739452244986,-151.0,0.00014987,2]
[352943452,1739452244995,-151.0,0.00014987,2]
[352943453,1739452245005,-642.66286372,0.00014987,2]
[352943454,1739452245015,-500.0,0.00014987,2]
[352943455,1739452245024,-500.0,0.00014987,2]
[352943456,1739452245034,-500.0,0.00014987,2]
[352943457,1739452245043,-501.45004974,0.00014987,2]
[352943458,1739452245053,-415.85060618,0.00014987,2]
[352943459,1739452245064,-502.94955587,0.00014987,2]
[352943460,1739452245074,-500.0,0.00014987,2]
[352943461,1739452245083,-465.09665109,0.00014987,2]
[352943462,1739452245092,-287.90489347,0.00014987,2]
[352943463,1739452245102,-372.87309936,0.00014987,2]
[352943464,1739452245111,-679.34,0.00014987,2]
[352943465,1739452245121,-500.0,0.00014987,2]
[352943466,1739452245130,-500.0,0.00014987,2]
[352943467,1739452245140,-500.0,0.00014987,2]
[352943468,1739452245150,-500.0,0.00014987,2]
[352943469,1739452245159,-525.91,0.00014987,2]
[352943470,1739452245169,-151.0,0.00014987,2]
[352943471,1739452245178,-151.0,0.00014987,2]
[352943472,1739452245188,-151.0,0.00014987,2]
[352943473,1739452245197,-814.6,0.00014987,2]
[352943474,1739452245206,-500.0,0.00014987,2]
[352943475,1739452245215,-500.0,0.00014987,2]
[352943476,1739452245225,-500.0,0.00014987,2]
[352943477,1739452245234,-500.0,0.00014987,2]
[352943478,1739452245243,-500.0,0.00014987,2]
[352943479,1739452245253,-151.0,0.00014987,2]
[352943480,1739452245262,-151.0,0.00014987,2]
[352943481,1739452245271,-858.96,0.00014987,2]
[352943482,1739452245281,-500.0,0.00014987,2]
[352943483,1739452245290,-657.41,0.00014987,2]
[352943484,1739452245300,-500.0,0.00014987,2]
[352943485,1739452245309,-500.0,0.00014987,2]
[352943486,1739452245319,-873.47,0.00014987,2]
[352943487,1739452245328,-500.0,0.00014987,2]
[352943488,1739452245338,-502.63037334,0.00014987,2]
[352943489,1739452245347,-500.0,0.00014987,2]
[352943490,1739452245357,-500.0,0.00014987,2]
[352943491,1739452245367,-151.0,0.00014987,2]
[352943492,1739452245376,-151.0,0.00014987,2]
[352943493,1739452245386,-151.0,0.00014987,2]
[352943494,1739452245395,-151.0,0.00014987,2]
[352943495,1739452245404,-500.0,0.00014987,2]
[352943496,1739452245414,-620.58,0.00014987,2]
[352943497,1739452245424,-909.42,0.00014987,2]
[352943498,1739452245433,-500.0,0.00014987,2]
[352943499,1739452245442,-500.0,0.00014987,2]
[352943500,1739452245452,-235.496077,0.00014987,2]
[352943501,1739452245461,-500.0,0.00014987,2]
[352943502,1739452245471,-944.9331306,0.00014987,2]
[352943503,1739452245484,-1149.1968694,0.00014987,2]
[352943504,1739452245494,-500.0,0.00014987,2]
[352943505,1739452245503,-2030.57,0.00014987,2]
[352943506,1739452245513,-728.06,0.00014987,2]
[352943507,1739452245523,-500.0,0.00014987,2]
[352943508,1739452245532,-500.0,0.00014987,2]
[352943509,1739452245542,-2008.28,0.00014987,2]
[352943510,1739452245551,-151.0,0.00014987,2]
[352943511,1739452245563,-151.0,0.00014987,2]
[352943512,1739452245572,-957.94,0.00014987,2]
[352943513,1739452245582,-1171.43,0.00014987,2]
[352943514,1739452245591,-151.0,0.00014987,2]
[352943515,1739452245601,-595.34,0.00014987,2]
[352943517,1739452245610,-151.0,0.00014987,2]
[352943519,1739452245621,-151.0,0.00014987,2]
[352943521,1739452245631,-151.0,0.00014987,2]
[352943523,1739452245640,-245.17992153,0.00014987,2]
[352943525,1739452245652,-254.82007847,0.00014987,2]
[352943528,1739452245661,-289.56162811,0.00014987,2]
[352943531,1739452245673,-210.43837189,0.00014987,2]
[352943533,1739452245682,-279.92359986,0.00014987,2]
[352943535,1739452245694,-272.13640014,0.00014987,2]
[352943537,1739452245703,-571.79498435,0.00014987,2]
[352943539,1739452245712,-206.06860551,0.00014987,2]
[352943541,1739452245724,-809.70139449,0.00014987,2]
[352943543,1739452245733,-229.88760644,0.00014987,2]
[352943546,1739452245756,-1299.93239356,0.00014987,2]
[352943548,1739452245765,-500.0,0.00014987,2]
[352943550,1739452245775,-500.0,0.00014987,2]
[352943552,1739452245784,-1778.09,0.00014987,2]
[352943553,1739452245794,-1099.35,0.00014987,2]
[352943554,1739452245804,-500.0,0.00014987,2]
[352943555,1739452245816,-500.0,0.00014987,2]
[352943556,1739452245826,-565.17,0.00014987,2]
[352943557,1739452245835,-1004.8,0.00014987,2]
[352943558,1739452245849,-500.0,0.00014987,2]
[352943559,1739452245859,-1174.76,0.00014987,2]
[352943560,1739452245868,-1081.81,0.00014987,2]
[352943561,1739452245878,-500.0,0.00014987,2]
[352943562,1739452245889,-500.0,0.00014987,2]
[352943563,1739452245898,-500.0,0.00014987,2]
[352943564,1739452245907,-500.0,0.00014987,2]
[352943565,1739452245918,-500.0,0.00014987,2]
[352943566,1739452245928,-980.19,0.00014987,2]
[352943567,1739452245939,-1023.73,0.00014987,2]
[352943568,1739452245948,-1845.84,0.00014987,2]
[352943569,1739452245957,-1522.42,0.00014987,2]
[352943570,1739452245966,-500.0,0.00014987,2]
[352943571,1739452245976,-500.0,0.00014987,2]
[352943572,1739452245986,-151.0,0.00014987,2]
[352943573,1739452245995,-151.0,0.00014987,2]
[352943574,1739452246004,-2042.49,0.00014987,2]
[352943575,1739452246013,-500.0,0.00014987,2]
[352943576,1739452246022,-511.82,0.00014987,2]
[352943577,1739452246031,-1170.64,0.00014987,2]
[352943578,1739452246040,-183.837346,0.00014987,2]
[352943579,1739452246049,-183.837346,0.00014987,2]
[352943580,1739452246059,-183.837346,0.00014987,2]
[352943582,1739452246070,-183.837346,0.00014987,2]
[352943584,1739452246080,-500.0,0.00014987,2]
[352943585,1739452246089,-979.34,0.00014987,2]
[352943586,1739452246098,-500.0,0.00014987,2]
[352943587,1739452246107,-500.0,0.00014987,2]
[352943588,1739452246117,-500.0,0.00014987,2]
[352943590,1739452246126,-500.0,0.00014987,2]
[352943591,1739452246135,-970.07,0.00014987,2]
[352943592,1739452246145,-947.35,0.00014987,2]
[352943593,1739452246154,-2094.08,0.00014987,2]
[352943594,1739452246164,-1221.69,0.00014987,2]
[352943595,1739452246173,-1002.14,0.00014987,2]
[352943597,1739452246183,-500.0,0.00014987,2]
[352943599,1739452246193,-151.0,0.00014987,2]
[352943600,1739452246203,-151.0,0.00014987,2]
[352943601,1739452246214,-309.089121,0.00014987,2]
[352943602,1739452246226,-309.089121,0.00014987,2]
[352943603,1739452246385,-1328.78,0.00014987,2]
[352943604,1739452246396,-191.033785,0.00014987,2]
[352943605,1739452246405,-309.089121,0.00014987,2]
[352943606,1739452246415,-309.089121,0.00014987,2]
[352943607,1739452246425,-191.033785,0.00014987,2]
[352943608,1739452246434,-2016.18,0.00014987,2]
[352943609,1739452246444,-1002.07,0.00014987,2]
[352943610,1739452246454,-1211.65,0.00014987,2]
[352943611,1739452246463,-1763.87,0.00014987,2]
[352943612,1739452246472,-846.29,0.00014987,2]
[352943613,1739452246482,-1825.0,0.00014987,2]
[352943614,1739452246491,-1845.82,0.00014987,2]
[352943615,1739452246501,-1829.03,0.00014987,2]
[352943616,1739452246511,-1339.77,0.00014987,2]
[352943617,1739452246520,-151.0,0.00014988,2]
[352943618,1739452246529,-151.0,0.00014988,2]
[352943619,1739452246539,-151.0,0.00014988,2]
[352943620,1739452246548,-151.0,0.00014988,2]
[352943621,1739452246557,-151.0,0.00014988,2]
[352943622,1739452246569,-151.0,0.00014988,2]
[352943623,1739452246578,-151.0,0.00014988,2]
[352943624,1739452246588,-151.0,0.00014988,2]
[352943625,1739452246597,-151.0,0.00014988,2]
[352943626,1739452246606,-151.0,0.00014988,2]
[352943627,1739452246616,-151.0,0.00014988,2]
[352943628,1739452246625,-500.0,0.00014988,2]
[352943629,1739452246635,-151.0,0.00014989,2]
[352943630,1739452246644,-151.0,0.00014989,2]
[352943631,1739452246654,-500.0,0.00014989,2]
[352943632,1739452246664,-500.0,0.00014989,2]
[352943633,1739452246673,-151.0,0.00014989,2]
[352943634,1739452246683,-160.25223,0.00014989,2]
[352943635,1739452246692,-500.0,0.00014989,2]
[352943636,1739452246701,-191.033785,0.00014989,2]
[352943637,1739452246711,-191.033785,0.00014989,2]
[352943638,1739452246720,-1098.96,0.00014989,2]
[352943639,1739452246730,-1098.96,0.00014989,2]
[352943640,1739452246739,-100716.27299232,0.0001499,3]
[352943641,1739452247351,-3832.10182229,0.0001499,3]
[352943642,1739452247644,-460.85805502,0.00014984,2]
[352943643,1739452247660,-855.855009,0.00014984,2]
[352943644,1739452247699,-97.06693598,0.00014984,2]
[352943645,1739452247709,-549.78,0.00014985,2]
[352943646,1739452247718,-64.50156652,0.00014985,2]
[352943647,1739452249230,-435.49843348,0.00014985,2]
[352943648,1739452249241,-217.02143452,0.00014985,2]
[352943649,1739452249684,-647.06,0.00014985,2]
[352943650,1739452249764,-27.39856548,0.00014985,2]
[352943651,1739452249775,-500.0,0.00014985,2]
[352943652,1739452249784,-424.93824952,0.00014986,3]
[352943653,1739452249795,-797.2045167,0.00014986,3]
[352943654,1739452249807,-455.84,0.00014986,3]
[352943655,1739452249818,-783.45624,0.00014986,3]
[352943656,1739452249835,-1189.33499715,0.00014986,3]
[352943657,1739452249975,1547.94,0.00014059,2]
[352943658,1739452251679,700.0,0.00013068,2]
[352943659,1739452252106,500.0,0.00013068,2]
[352943660,1739452253210,300.0,0.000141,5]
[352943661,1739452254182,700.0,0.00014438,2]
[352943662,1739452255328,700.0,0.000142,5]
[352943663,1739452257499,1100.0,0.000143,5]
[352943664,1739452259617,1500.0,0.000144,5]
[352943665,1739452261726,1900.0,0.000145,5]
[352943666,1739452263849,300.0,0.000146,5]
[352943667,1739452265977,300.0,0.000147,5]
[352943668,1739452268089,300.0,0.000148,5]
[352943669,1739452280727,169.32,0.00014458,2]
[352943670,1739452503529,152.0,0.00014458,30]
[352943671,1739452633727,5619.38270857,8.836e-05,2]
[352943672,1739452633750,10000.0,8.836e-05,2]
[352943673,1739452633771,10000.0,8.836e-05,2]
[352943674,1739452633796,15644.17319143,8.836e-05,2]
[352943675,1739452764947,4020.0755,8.836e-05,2]
[352943676,1739452794480,5979.9245,8.836e-05,2]
[352943677,1739452794500,3082.6401,8.836e-05,2]
[352943678,1739452803115,152.0,0.00014458,30]
[352943679,1739452815898,2239.7793,8.256e-05,2]
[352943680,1739452821350,525.0742,8.836e-05,2]
[352943681,1739452875422,500.0,0.0002,120]
[352943682,1739452876125,500.0,0.0002,120]
[352943683,1739452879322,500.0,0.0002,120]
[352943684,1739452880160,500.0,0.0002,120]
[352943685,1739452880860,500.0,0.0002,120]
[352943686,1739452881812,500.0,0.0002,120]
[352943687,1739452882597,500.0,0.0002,120]
[352943688,1739452883466,500.0,0.0002,120]
[352943689,1739452884068,500.0,0.0002,120]
[352943690,1739452884752,500.0,0.0002,120]
[352943691,1739452885517,500.0,0.0002,120]
[352943692,1739452886074,500.0,0.0002,120]
[352943693,1739452886727,500.0,0.0002,120]
[352943694,1739452887329,500.0,0.0002,120]
[352943695,1739452887875,500.0,0.0002,120]
[352943696,1739452888259,500.0,0.0002,120]
[352943697,1739452888656,500.0,0.0002,120]
[352943698,1739452888999,500.0,0.0002,120]
[352943699,1739452889362,500.0,0.0002,120]
[352943700,1739452896136,1235.39,0.00011979,2]
[352943701,1739452910972,500.0,0.0002,120]
[352943702,1739452913287,500.0,0.0002,120]
[352943703,1739452914170,500.0,0.0002,120]
[352943704,1739452915374,500.0,0.0002,120]
[352943705,1739452915731,500.0,0.0002,120]
[352943706,1739452916422,500.0,0.0002,120]
[352943707,1739452917015,500.0,0.0002,120]
[352943708,1739452917357,-550.0,0.00013,2]
[352943709,1739452917381,-800.0,0.00013068,2]
[352943710,1739452917408,-250.0,0.00013798,2]
[352943711,1739452917431,-962.52,0.00013957,2]
[352943712,1739452917453,-2000.0,0.00013957,2]
[352943713,1739452917474,-1500.0,0.00013959,2]
[352943714,1739452917496,-964.57,0.0001398,2]
[352943715,1739452917519,-5027.41010582,0.00013999,2]
[352943716,1739452917543,-300.0,0.00013999,2]
[352943717,1739452917564,-2048.60461049,0.00014,2]
[352943718,1739452917586,-150.0,0.00014017,2]
[352943719,1739452917608,-247.45,0.00014018,2]
[352943720,1739452917630,-15199.44528369,0.00014018,2]
[352943721,1739452917689,500.0,0.0002,120]
[352943722,1739452919093,500.0,0.0002,120]
[352943723,1739452920273,500.0,0.0002,120]
[352943724,1739452921566,500.0,0.0002,120]
[352943725,1739452922259,500.0,0.0002,120]
[352943726,1739452923099,500.0,0.0002,120]
[352943727,1739452923908,500.0,0.0002,120]
[352943728,1739452924655,500.0,0.0002,120]
[352943729,1739452925744,500.0,0.0002,120]
[352943730,1739452926310,500.0,0.0002,120]
[352943731,1739452927128,500.0,0.0002,120]
[352943732,1739452928003,500.0,0.0002,120]
[352943733,1739452929926,500.0,0.0002,120]
[352943734,1739452931663,500.0,0.0002,120]
[352943735,1739452932993,500.0,0.0002,120]
[352943736,1739452934784,500.0,0.0002,120]
[352943737,1739452944115,2917.1164,8.973e-05,2]
[352943738,1739452944138,4354.8367,8.973e-05,2]
[352943739,1739452944544,301.99196009,0.0002,120]
[352943740,1739453008186,5645.1633,8.836e-05,2]
[352943741,1739453008209,10000.0,8.836e-05,2]
[352943742,1739453008231,4354.8367,8.836e-05,2]
[352943743,1739453043972,500.0,0.00014984,30]
[352943744,1739453102533,152.0,0.00014984,30]
[352943745,1739453108553,5645.1633,0.0001,2]
[352943746,1739453108578,10000.0,0.0001,2]
[352943747,1739453108604,10000.0,0.0001,2]
[352943748,1739453108627,10000.0,0.0001,2]
[352943749,1739453108651,10000.0,0.0001,2]
[352943750,1739453108675,10000.0,0.0001,2]
[352943751,1739453108699,10000.0,0.0001,2]
[352943752,1739453108724,10000.0,0.0001,2]
[352943753,1739453108748,124354.8367,0.0001,2]
[352943754,1739453120563,5305.9995,8.836e-05,2]
[352943755,1739453136659,4694.0005,8e-05,2]
[352943756,1739453136682,5305.9995,8e-05,2]
[352943757,1739453147752,853.0541,8.836e-05,2]
[352943758,1739453155042,3840.9464,6.94e-05,2]
[352943759,1739453155065,10000.0,6.94e-05,2]
[352943760,1739453155088,10000.0,6.94e-05,2]
[352943761,1739453155111,5320.81344944,6.94e-05,2]
[352943763,1739453161017,4679.18655056,8.836e-05,2]
[352943764,1739453161039,6161.84874944,8.836e-05,2]
[352943765,1739453164727,860.2351,8.699e-05,2]
[352943766,1739453179951,312.5832,8.699e-05,2]
[352943768,1739453210789,2665.33295056,8.836e-05,2]
[352943769,1739453210811,10000.0,8.836e-05,2]
[352943770,1739453210833,10000.0,8.836e-05,2]
[352943771,1739453210855,1766.31544944,8.836e-05,2]
[352943772,1739453222263,1311.4611,8.699e-05,2]
[352943773,1739453229134,-700.0,0.00013068,2]
[352943774,1739453229158,-150.0,0.00013327,2]
[352943775,1739453229187,-1082.06111582,0.00013586,2]
[352943776,1739453229213,-150.0,0.00013586,2]
[352943777,1739453229234,-150.0,0.00013586,2]
[352943778,1739453229260,-150.0,0.00013586,2]
[352943779,1739453229282,-150.0,0.00013586,2]
[352943780,1739453229304,-1423.49,0.00013649,2]
[352943781,1739453229324,-1473.818452,0.00013685,2]
[352943782,1739453229346,-150.0,0.00013754,2]
[352943783,1739453229367,-150.0,0.00013922,2]
[352943784,1739453229388,-300.0,0.00013934,2]
[352943785,1739453229409,-167.11,0.00013935,2]
[352943786,1739453229430,-1631.18,0.00013935,2]
[352943787,1739453229453,-1000.0,0.00013946,2]
[352943788,1739453229474,-482.97,0.00013963,2]
[352943789,1739453229495,-150.0,0.00013964,2]
[352943790,1739453229517,-150.0,0.00013964,2]
[352943791,1739453229540,-8700.55471631,0.00014018,2]
[352943792,1739453229561,-783.58,0.00014018,2]
[352943793,1739453229582,-349.0,0.00014055,2]
[352943794,1739453229604,-150.0,0.00014089,2]
[352943795,1739453229626,-300.0,0.000141,5]
[352943796,1739453229647,-356.2498072,0.00014164,2]
[352943797,1739453231879,1449.6779,8.836e-05,2]
[352943798,1739453238102,-243.7501928,0.00014164,2]
[352943799,1739453238128,-700.0,0.000142,5]
[352943800,1739453238151,-1235.39,0.00014243,2]
[352943801,1739453238178,-150.0,0.00014257,2]
[352943802,1739453238203,-1100.0,0.000143,5]
[352943803,1739453238231,-150.0,0.00014341,2]
[352943804,1739453238256,-150.0,0.00014341,2]
[352943805,1739453238281,-150.0,0.00014375,2]
[352943806,1739453238305,-1500.0,0.000144,5]
[352943807,1739453238329,-150.0,0.00014425,2]
[352943808,1739453238352,-700.0,0.00014438,2]
[352943809,1739453238375,-1900.0,0.000145,5]
[352943810,1739453238397,-150.0,0.00014593,2]
[352943811,1739453238420,-300.0,0.000146,5]
[352943812,1739453238443,-150.0,0.00014717,2]
[352943813,1739453238471,-150.0,0.00014718,2]
[352943814,1739453238494,-150.0,0.00014718,2]
[352943815,1739453238516,-150.0,0.00014718,2]
[352943816,1739453238539,-150.0,0.00014744,2]
[352943817,1739453238563,-150.0,0.0001476,2]
[352943818,1739453238585,-259.8149,0.0001484,2]
[352943819,1739453238613,-150.0,0.00014861,2]
[352943820,1739453238637,-150.0,0.00014862,2]
[352943821,1739453238659,-942.59485966,0.00014884,2]
[352943822,1739453238681,-306.76314966,0.00014884,2]
[352943823,1739453238703,-458.78014719,0.000149,2]
[352943824,1739453241100,2462.9468,8.836e-05,2]
[352943825,1739453253146,-300.0,0.000147,5]
[352943826,1739453253174,-300.0,0.000148,5]
[352943827,1739453253197,-946.67111198,0.000149,2]
[352943828,1739453254083,-461.54874083,0.000149,2]
[352943829,1739453254108,-300.0,0.000149,5]
[352943830,1739453254132,-942.59485962,0.00014908,2]
[352943831,1739453254159,-150.0,0.00014908,2]
[352943832,1739453254187,-150.0,0.00014928,2]
[352943833,1739453254211,-942.59485962,0.00014932,2]
[352943834,1739453254240,-1262.66,0.00014939,2]
[352943835,1739453254265,-167.0,0.00014952,2]
[352943836,1739453254289,-166.66970933,0.00014952,2]
[352943837,1739453254315,-942.59485962,0.00014956,2]
[352943838,1739453254342,-150.0,0.00014976,2]
[352943839,1739453254369,-6072.9917253,0.00014979,2]
[352943840,1739453254393,-1194.5543213,0.00014979,2]
[352943841,1739453254418,-942.59485962,0.0001498,2]
[352943842,1739453254442,-2731.15570014,0.0001498,2]
[352943843,1739453254466,-531.87482,0.00014983,2]
[352943844,1739453254493,-156.682121,0.00014983,2]
[352943845,1739453254517,-336.649541,0.00014983,2]
[352943846,1739453254542,-646.29,0.00014983,2]
[352943847,1739453254566,-1529.39,0.00014983,2]
[352943848,1739453254591,-500.0,0.00014983,2]
[352943849,1739453254616,-460.65860412,0.00014983,2]
[352943850,1739453254640,-637.67,0.00014983,2]
[352943851,1739453254663,-1146.55,0.00014983,2]
[352943852,1739453254687,-1207.11,0.00014983,2]
[352943853,1739453254713,-500.0,0.00014983,2]
[352943854,1739453254743,-902.67,0.00014983,2]
[352943855,1739453254768,-500.0,0.00014983,2]
[352943856,1739453254792,-500.0,0.00014983,2]
[352943857,1739453254817,-650.75,0.00014983,2]
[352943858,1739453254841,-500.0,0.00014983,2]
[352943859,1739453254865,-1235.36,0.00014983,2]
[352943860,1739453254887,-1571.01,0.00014983,2]
[352943861,1739453254909,-500.0,0.00014983,2]
[352943862,1739453254932,-500.0,0.00014983,2]
[352943863,1739453254953,-802.57,0.00014983,2]
[352943864,1739453254977,-312.17540943,0.00014983,2]
[352943865,1739453259039,266.6488,8.699e-05,2]
[352943866,1739453264967,2742.94995056,8.699e-05,2]
[352943867,1739453264990,10000.0,8.699e-05,2]
[352943868,1739453265012,10000.0,8.699e-05,2]
[352943869,1739453265032,8281.76114944,8.699e-05,2]
[352943870,1739453276783,500.0,8.851e-05,2]
[352943871,1739453283479,1218.23885056,8.851e-05,2]
[352943872,1739453283503,1281.76114944,8.851e-05,2]
[352943873,1739453288757,785.0279,8.836e-05,2]
[352943874,1739453289309,1170.5226,8.699e-05,2]
[352943875,1739453300409,6762.68835056,8.836e-05,2]
[352943876,1739453300431,10000.0,8.836e-05,2]
[352943877,1739453300452,10000.0,8.836e-05,2]
[352943878,1739453300472,9503.56364944,8.836e-05,2]
[352943883,1739453327505,496.43635056,8.973e-05,2]
[352943884,1739453327528,10000.0,8.973e-05,2]
[352943885,1739453327552,10000.0,8.973e-05,2]
[352943886,1739453327573,10000.0,8.973e-05,2]
[352943887,1739453327595,1701.62624944,8.973e-05,2]
[352943888,1739453335431,5000.0,8.973e-05,2]
[352943889,1739453336956,1239.0375,8.256e-05,2]
[352943890,1739453348211,-800.0,0.00013068,2]
[352943891,1739453348232,-500.0,0.00013068,2]
[352943892,1739453348254,-150.0,0.00013552,2]
[352943893,1739453348275,-242.54,0.00013699,2]
[352943894,1739453348296,-3390.30845397,0.00013948,2]
[352943895,1739453348317,-204.29,0.00013983,2]
[352943896,1739453348338,-150.0,0.00014022,2]
[352943897,1739453348359,-5077.7,0.00014036,2]
[352943898,1739453348381,-200.0,0.00014048,2]
[352943899,1739453348402,-300.0,0.000141,5]
[352943900,1739453348423,-169.48,0.0001414,2]
[352943901,1739453348444,-700.0,0.00014164,2]
[352943902,1739453348465,-700.0,0.000142,5]
[352943903,1739453348486,-1100.0,0.000143,5]
[352943904,1739453348506,-150.0,0.00014375,2]
[352943905,1739453348526,-1400.0,0.000144,5]
[352943906,1739453348551,-800.0,0.00014438,2]
[352943907,1739453348572,-94239.1593574,0.000145,2]
[352943908,1739453348594,-1800.0,0.000145,5]
[352943909,1739453348614,-583.9966573,0.0001452,3]